bitfinex/quotes_SOLUSD_20260224
["timestamp","ask_amount","ask_price","bid_price","bid_amount"]
[1771957191229,44.80630872,78.114,78.079,12.80754108]
[1771957191434,3.33091107,78.109,78.08,4.32758983]
[1771957194360,3.33091107,78.108,78.066,4.32758983]
[1771957194670,3.33091107,78.117,78.066,4.32758983]
[1771957194869,3.33091107,78.124,78.07,4.32758983]
[1771957195046,3.33091107,78.124,78.074,4.09757933]
[1771957196173,0.2,78.13,78.074,4.09757933]
[1771957196351,3.33091107,78.128,78.076,4.09757933]
[1771957196545,3.33091107,78.128,78.077,4.09757933]
[1771957197472,3.33091107,78.128,78.078,4.09757933]
[1771957198248,3.33091107,78.128,78.08,4.09757933]
[1771957198777,3.33091107,78.126,78.082,4.09757933]
[1771957200568,3.33091107,78.126,78.083,44.82409743]
[1771957200783,3.33091107,78.124,78.084,4.09757933]
[1771957202367,3.33091107,78.109,78.043,4.09757933]
[1771957202571,3.33091107,78.099,78.047,4.09757933]
[1771957202776,3.33091107,78.097,78.052,4.09757933]
[1771957203076,3.33091107,78.109,78.053,4.09757933]
[1771957203245,3.33091107,78.109,78.054,4.09757933]
[1771957204664,3.33091107,78.109,78.055,4.09757933]
[1771957204845,3.33091107,78.109,78.054,17.70840875]
[1771957204846,3.33091107,78.107,78.057,4.09757933]
[1771957205672,3.33091107,78.099,78.057,4.09757933]
[1771957207254,3.33091107,78.097,78.059,4.09757933]
[1771957208293,5.55011243,78.09,78.055,12.81147908]
[1771957208575,3.33091107,78.089,78.055,16.90905841]
[1771957208764,3.33091107,78.089,78.056,4.09757933]
[1771957209088,3.33091107,78.089,78.057,50.5]
[1771957209256,3.33091107,78.089,78.049,4.09757933]
[1771957209662,3.33091107,78.087,78.053,12.81171082]
[1771957209869,3.33091107,78.087,78.049,4.09757933]
[1771957210153,3.33091107,78.087,78.05,12.8122998]
[1771957210353,3.33091107,78.079,78.05,12.8122998]
[1771957210556,3.33091107,78.079,78.05,44.84304931]
[1771957210754,3.33091107,78.086,78.051,4.09757933]
[1771957211682,8.64341408,78.089,78.052,12.8119715]
[1771957211863,101.11869234,78.23,78.053,4.09757933]
[1771957211864,3.33091107,78.106,78.053,4.09757933]
[1771957212175,3.33091107,78.106,78.054,4.09757933]
[1771957212384,3.33091107,78.106,78.056,4.09757933]
[1771957212568,3.33091107,78.106,78.058,4.09757933]
[1771957212883,3.33091107,78.106,78.06,4.09757933]
[1771957213185,51.1824844,78.152,78.06,4.09757933]
[1771957213386,3.33091107,78.119,78.064,4.09757933]
[1771957213565,3.33091107,78.119,78.068,3.69383402]
[1771957213872,3.33091107,78.119,78.074,4.09757933]
[1771957214757,3.33091107,78.129,78.074,4.09757933]
[1771957216079,0.2,78.13,78.076,4.09757933]
[1771957216262,3.53091107,78.13,78.076,4.09757933]
[1771957216460,3.53091107,78.13,78.078,3.69383402]
[1771957216661,3.53091107,78.13,78.083,4.09757933]
[1771957218469,3.53091107,78.13,78.085,4.09757933]
[1771957219664,3.53091107,78.13,78.086,44.82237532]
[1771957219980,3.53091107,78.13,78.087,4.09757933]
[1771957221180,3.53091107,78.13,78.089,4.09757933]
[1771957221586,3.33091107,78.129,78.089,4.09757933]
[1771957224292,3.33091107,78.129,78.091,4.43924799]
[1771957227283,3.33091107,78.127,78.093,4.33206384]
[1771957227590,3.33091107,78.127,78.082,4.33206384]
[1771957227773,3.33091107,78.119,78.082,4.33206384]
[1771957228486,3.33091107,78.109,78.08,12.80737704]
[1771957228665,3.33091107,78.109,78.081,4.33206384]
[1771957229061,16.13361035,78.109,78.081,4.33206384]
[1771957229281,3.33091107,78.108,78.082,12.80704899]
[1771957230366,3.33091107,78.108,78.078,12.80764459]
[1771957230986,3.33091107,78.108,78.078,17.13970843]
[1771957233493,3.33091107,78.106,78.074,12.80833501]
[1771957233792,3.33091107,78.099,78.061,4.33206384]
[1771957236494,3.33091107,78.099,78.049,17.70840875]
[1771957236495,3.33091107,78.099,78.063,4.33206384]
[1771957236996,3.33091107,78.097,78.063,4.33206384]
[1771957238595,3.33091107,78.097,78.064,44.83500716]
[1771957238794,3.33091107,78.109,78.065,4.33206384]
[1771957239100,3.33091107,78.109,78.064,44.83500716]
[1771957239101,3.33091107,78.109,78.067,4.33206384]
[1771957239297,32.00333403,78.117,78.069,4.33206384]
[1771957239298,3.33091107,78.117,78.069,4.33206384]
[1771957239683,3.33091107,78.125,78.069,4.33206384]
[1771957240011,5.36086188,78.139,78.069,4.33206384]
[1771957240012,3.33091107,78.144,78.075,4.33206384]
[1771957240178,3.33091107,78.144,78.079,3.69383402]
[1771957240498,3.33091107,78.144,78.084,4.33206384]
[1771957240691,3.33091107,78.144,78.088,3.69383402]
[1771957240899,3.33091107,78.144,78.093,4.33206384]
[1771957241093,3.43091107,78.14,78.093,4.33206384]
[1771957241404,3.33091107,78.129,78.093,4.33206384]
[1771957243095,3.33091107,78.129,78.094,44.81778369]
[1771957243683,3.33091107,78.127,78.094,12.80508105]
[1771957244286,3.33091107,78.119,78.094,12.80508105]
[1771957244705,3.33091107,78.119,78.086,4.33206384]
[1771957245004,3.33091107,78.119,78.087,12.80622894]
[1771957245305,3.33091107,78.117,78.087,12.80622894]
[1771957247210,3.33091107,78.115,78.087,4.33206384]
[1771957248208,12.80032768,78.123,78.087,4.33206384]
[1771957248411,3.33091107,78.122,78.087,4.33206384]
[1771957249287,3.33091107,78.128,78.089,4.33206384]
[1771957249701,12.79967232,78.127,78.089,4.33206384]
[1771957250103,16.12892073,78.127,78.089,4.33206384]
[1771957251091,12.79874619,78.133,78.089,4.33206384]
[1771957251292,3.32587077,78.132,78.091,4.33206384]
[1771957253188,3.31922831,78.13,78.093,4.33206384]
[1771957253388,3.31922831,78.129,78.093,4.33206384]
[1771957255389,3.31922831,78.129,78.093,4.37411839]
[1771957255711,3.31922831,78.129,78.067,35.6693421]
[1771957255712,3.3000692,78.127,78.072,4.37411839]
[1771957256089,3.29233034,78.139,78.074,4.37411839]
[1771957256486,16.09003699,78.139,78.074,4.37411839]
[1771957256696,3.29233034,78.138,78.075,4.37411839]
[1771957257016,3.29233034,78.138,78.076,4.37411839]
[1771957257316,12.79770665,78.139,78.077,4.37411839]
[1771957257506,0.1,78.14,78.082,4.37411839]
[1771957257690,0.1,78.14,78.083,17.70840875]
[1771957257990,0.1,78.14,78.085,4.37411839]
[1771957258190,0.1,78.14,78.087,4.37411839]
[1771957258496,12.79770665,78.139,78.088,4.37411839]
[1771957258696,16.0747255,78.139,78.088,4.37411839]
[1771957259009,3.27701885,78.139,78.088,4.37411839]
[1771957259599,3.27701885,78.139,78.09,4.37411839]
[1771957260513,31.97626575,78.183,78.091,17.70840875]
[1771957260696,57.8,78.2,78.091,17.70840875]
[1771957260697,5.36086188,78.17,78.095,4.37411839]
[1771957260903,3.26205353,78.169,78.1,4.37411839]
[1771957261103,3.26205353,78.169,78.104,3.69383402]
[1771957261301,3.26205353,78.169,78.105,4.37411839]
[1771957261498,3.25468469,78.177,78.105,4.37411839]
[1771957261697,3.25468469,78.173,78.112,4.37411839]
[1771957261913,3.25468469,78.159,78.112,4.37411839]
[1771957263702,3.24027933,78.157,78.114,4.37411839]
[1771957263894,3.23319935,78.165,78.114,4.37411839]
[1771957264094,57.8,78.2,78.121,4.37411839]
[1771957264095,3.23319935,78.182,78.121,4.37411839]
[1771957264293,3.23319935,78.182,78.123,4.37411839]
[1771957264517,3.23319935,78.191,78.123,4.37411839]
[1771957264712,3.23319935,78.191,78.128,4.37411839]
[1771957265111,3.23319935,78.191,78.133,4.37411839]
[1771957265501,0.2413704,78.196,78.133,4.37411839]
[1771957265701,0.2413704,78.196,78.138,4.37411839]
[1771957265920,0.2413704,78.196,78.143,4.37411839]
[1771957266219,0.2413704,78.196,78.147,4.37411839]
[1771957266516,0.1,78.21,78.152,4.37411839]
[1771957266723,0.1,78.21,78.156,3.69383402]
[1771957266906,0.1,78.21,78.161,4.37411839]
[1771957267107,0.1,78.23,78.163,4.37411839]
[1771957267298,0.1,78.23,78.167,3.69383402]
[1771957267506,0.1,78.23,78.172,4.37411839]
[1771957267701,0.1,78.23,78.176,3.69383402]
[1771957268003,0.1,78.23,78.182,4.37411839]
[1771957269404,3.44079747,78.219,78.182,4.37411839]
[1771957269921,3.43434261,78.209,78.175,12.79181323]
[1771957270706,5.53066506,78.2,78.157,4.37411839]
[1771957270903,3.43434261,78.189,78.158,4.37411839]
[1771957272227,16.22397676,78.189,78.159,12.79443186]
[1771957272605,16.22397676,78.189,78.162,0.2159328]
[1771957272806,16.21034088,78.195,78.163,4.37411839]
[1771957273005,3.42165786,78.194,78.163,4.37411839]
[1771957273631,3.41542323,78.202,78.163,4.37411839]
[1771957274507,12.78756026,78.201,78.164,12.79361342]
[1771957274712,3.40926469,78.199,78.149,4.37411839]
[1771957274919,3.40926469,78.199,78.15,4.37411839]
[1771957275114,3.40317893,78.189,78.149,12.79606904]
[1771957275321,3.40317893,78.189,78.15,4.37411839]
[1771957275846,3.40317893,78.179,78.15,4.37411839]
[1771957277012,3.39119961,78.177,78.149,12.79606904]
[1771957277911,3.39119961,78.177,78.145,12.79666429]
[1771957278528,3.39119961,78.177,78.146,4.37411839]
[1771957278831,3.69383402,78.197,78.146,4.37411839]
[1771957278832,3.38532104,78.197,78.146,4.37411839]
[1771957279222,16.16791773,78.196,78.148,4.37411839]
[1771957279418,3.37953981,78.195,78.148,4.37411839]
[1771957280623,3.37377836,78.193,78.15,4.37411839]
[1771957282534,5.36086188,78.208,78.15,4.37411839]
[1771957282734,3.36245488,78.206,78.152,4.37411839]
[1771957282914,3.36245488,78.206,78.154,4.37411839]
[1771957283520,3.36245488,78.206,78.151,12.79574157]
[1771957283836,12.35945642,78.18,78.131,4.37411839]
[1771957284039,3.3513649,78.196,78.133,3.69383402]
[1771957284340,3.34592768,78.206,78.134,4.37411839]
[1771957284535,3.34592768,78.206,78.137,3.69383402]
[1771957284728,16.13283388,78.205,78.142,4.17089488]
[1771957284925,3.34592768,78.205,78.142,4.17089488]
[1771957285129,3.33523584,78.213,78.147,4.10741246]
[1771957285529,3.33523584,78.213,78.152,4.10741246]
[1771957285731,3.33523584,78.213,78.154,4.10741246]
[1771957286325,12.45945642,78.23,78.154,4.10741246]
[1771957286326,3.32997415,78.227,78.159,4.10741246]
[1771957286534,0.1,78.23,78.163,4.10741246]
[1771957286738,0.1,78.23,78.155,30.55577653]
[1771957286739,0.1,78.23,78.168,4.10741246]
[1771957286917,0.1,78.23,78.172,3.69383402]
[1771957287239,0.1,78.23,78.173,4.10741246]
[1771957289825,3.41443455,78.23,78.175,4.10741246]
[1771957293230,3.41443455,78.23,78.177,4.10741246]
[1771957293452,3.41443455,78.23,78.18,4.10741246]
[1771957294249,3.28969599,78.228,78.18,4.10741246]
[1771957294547,3.28969599,78.221,78.18,4.10741246]
[1771957295232,3.28494215,78.219,78.182,4.10741246]
[1771957297149,3.27548631,78.226,78.182,4.10741246]
[1771957297325,12.78311386,78.229,78.161,51.17637726]
[1771957297326,0.1,78.23,78.184,4.10741246]
[1771957297928,3.37548631,78.23,78.184,4.10741246]
[1771957298539,3.27087427,78.229,78.184,4.10741246]
[1771957300454,3.26179183,78.227,78.186,4.10741246]
[1771957301249,0.1,78.23,78.186,4.10741246]
[1771957301551,3.2573405,78.245,78.189,4.10741246]
[1771957302647,3.2573405,78.245,78.194,4.10741246]
[1771957304547,3.24417321,78.243,78.196,4.10741246]
[1771957304756,3.34417321,78.25,78.196,4.10741246]
[1771957306457,3.34417321,78.25,78.198,4.10741246]
[1771957306836,3.34417321,78.25,78.2,4.10741246]
[1771957307446,3.2314763,78.248,78.2,4.10741246]
[1771957308655,0.1,78.25,78.2,4.10741246]
[1771957308850,0.1,78.25,78.202,4.10741246]
[1771957309460,0.1,78.26,78.202,4.10741246]
[1771957311261,0.1,78.26,78.205,4.10741246]
[1771957311456,0.1,78.26,78.208,4.10741246]
[1771957313392,3.30728865,78.26,78.213,4.10741246]
[1771957314642,3.203409,78.259,78.213,4.10741246]
[1771957315865,3.18847598,78.257,78.214,44.74902191]
[1771957316260,12.77824631,78.258,78.204,4.21042784]
[1771957316261,3.18112637,78.249,78.204,4.21042784]
[1771957316749,3.18112637,78.249,78.205,35.6693421]
[1771957317144,3.18112637,78.249,78.206,4.21042784]
[1771957317745,3.17386874,78.257,78.206,4.21042784]
[1771957317962,3.17386874,78.255,78.208,4.21042784]
[1771957319063,3.15955032,78.249,78.208,4.21042784]
[1771957319261,3.15955032,78.239,78.199,4.21042784]
[1771957319472,3.15955032,78.239,78.2,4.21042784]
[1771957319650,15.93795991,78.257,78.202,4.21042784]
[1771957319848,3.15955032,78.256,78.204,4.21042784]
[1771957320052,15.93125882,78.255,78.206,4.21042784]
[1771957320252,0.1,78.26,78.206,4.21042784]
[1771957320449,0.1,78.26,78.209,4.21042784]
[1771957320655,0.1,78.26,78.211,4.21042784]
[1771957320977,0.1,78.27,78.215,4.21042784]
[1771957321156,0.1,78.28,78.256,4.21042784]
[1771957321560,0.1,78.28,78.216,52.69015609]
[1771957321561,0.1,78.29,78.257,4.21042784]
[1771957321953,0.1,78.29,78.259,4.21042784]
[1771957322357,12.3374569,78.28,78.218,4.21042784]
[1771957322673,3.13856517,78.279,78.221,4.21042784]
[1771957323251,3.1317672,78.269,78.222,4.21042784]
[1771957323474,3.1317672,78.259,78.214,4.21042784]
[1771957323866,3.1317672,78.249,78.198,4.21042784]
[1771957324068,3.1317672,78.249,78.197,44.75875033]
[1771957324069,3.12506148,78.256,78.2,4.21042784]
[1771957324875,3.12506148,78.256,78.203,4.21042784]
[1771957325461,3.11838638,78.265,78.203,4.21042784]
[1771957325771,3.11838638,78.279,78.208,4.21042784]
[1771957326168,3.11181524,78.277,78.213,4.21042784]
[1771957327776,3.10531709,78.289,78.213,4.21042784]
[1771957328154,3.10531709,78.289,78.209,223.75941385]
[1771957328155,3.09890157,78.288,78.218,4.21042784]
[1771957328555,3.09890157,78.279,78.218,4.21042784]
[1771957328750,3.09890157,78.279,78.222,3.69383402]
[1771957328981,3.09890157,78.279,78.223,4.21042784]
[1771957330161,44.71243516,78.278,78.224,12.78380036]
[1771957330376,3.08629265,78.269,78.224,12.78380036]
[1771957330881,3.08629265,78.269,78.224,48.95372912]
[1771957331079,3.08629265,78.269,78.225,4.21042784]
[1771957331676,44.71243516,78.278,78.216,12.7851079]
[1771957331677,3.08013789,78.259,78.216,12.7851079]
[1771957332072,12.33328369,78.25,78.212,12.78568098]
[1771957332385,3.07401946,78.247,78.212,12.78568098]
[1771957332579,3.07401946,78.239,78.194,4.21042784]
[1771957332974,3.07401946,78.247,78.194,4.21042784]
[1771957334583,3.06201069,78.239,78.196,4.21042784]
[1771957335085,3.06201069,78.239,78.195,44.75989512]
[1771957335485,3.06201069,78.239,78.195,48.97032296]
[1771957336579,3.06201069,78.239,78.198,4.21042784]
[1771957337579,3.04439583,78.238,78.198,4.21042784]
[1771957338580,3.04439583,78.238,78.199,80.42694769]
[1771957338787,3.04439583,78.238,78.2,4.21042784]
[1771957338969,12.78167618,78.237,78.2,4.21042784]
[1771957339177,3.033009,78.236,78.2,4.21042784]
[1771957340172,3.02737273,78.244,78.2,4.21042784]
[1771957341389,3.02183272,78.242,78.202,4.21042784]
[1771957344487,3.02183272,78.242,78.204,3.92059917]
[1771957344794,3.00032052,78.24,78.204,3.92059917]
[1771957348074,3.00032052,78.24,78.206,4.01315805]
[1771957349598,2.97007086,78.238,78.206,4.01315805]
[1771957350497,2.97007086,78.238,78.208,4.01315805]
[1771957353496,2.97007086,78.238,78.209,16.79941027]
[1771957353700,2.95093951,78.236,78.196,4.01315805]
[1771957353879,2.95093951,78.229,78.196,4.01315805]
[1771957355189,2.94169072,78.227,78.194,12.78867943]
[1771957355785,2.94169072,78.227,78.17,4.01315805]
[1771957356498,2.94169072,78.227,78.175,4.01315805]
[1771957356680,2.93720092,78.248,78.175,4.01315805]
[1771957356883,2.93720092,78.248,78.18,4.01315805]
[1771957358499,2.92824283,78.246,78.185,4.01315805]
[1771957360909,2.91950511,78.244,78.187,4.01315805]
[1771957361091,2.91521006,78.239,78.187,4.01315805]
[1771957362216,2.91521006,78.239,78.189,4.01315805]
[1771957363416,2.91521006,78.239,78.191,4.01315805]
[1771957363596,2.91521006,78.239,78.193,4.01315805]
[1771957363990,2.90271221,78.238,78.193,4.01315805]
[1771957365518,2.89857392,78.237,78.211,16.7990833]
[1771957366013,2.89857392,78.237,78.211,48.76389643]
[1771957366312,2.89452264,78.256,78.221,4.01315805]
[1771957367015,2.89452264,78.256,78.231,4.01315805]
[1771957367214,2.89046733,78.265,78.231,4.01315805]
[1771957367616,2.89046733,78.265,78.241,4.01315805]
[1771957368498,2.89046733,78.265,78.25,5.53082884]
[1771957368698,2.88648108,78.277,78.251,12.7793894]
[1771957368899,2.88648108,78.277,78.252,4.01315805]
[1771957370701,2.87868792,78.275,78.252,4.01315805]
[1771957371227,2.87868792,78.275,78.253,16.79222083]
[1771957372728,12.77563431,78.274,78.219,31.96154387]
[1771957372893,2.87109546,78.259,78.22,5.53082884]
[1771957373098,2.86737117,78.249,78.22,5.53082884]
[1771957373521,2.86737117,78.249,78.214,4.01315805]
[1771957373731,2.86737117,78.249,78.211,12.78592525]
[1771957375017,2.86369559,78.247,78.22,5.53082884]
[1771957375229,2.86369559,78.247,78.22,12.34368682]
[1771957375401,2.86369559,78.247,78.212,4.01315805]
[1771957376116,2.49339819,78.247,78.212,4.01315805]
[1771957377821,12.34368682,78.24,78.21,12.34368682]
[1771957378028,44.73072105,78.246,78.211,12.78592525]
[1771957378229,2.45740278,78.245,78.212,3.7699947]
[1771957378409,2.45740278,78.245,78.211,12.78592525]
[1771957379328,2.45740278,78.245,78.206,3.7699947]
[1771957379531,44.73072105,78.246,78.207,12.7865792]
[1771957379532,2.45061055,78.239,78.207,12.7865792]
[1771957379825,2.45061055,78.237,78.202,3.7699947]
[1771957381128,2.45061055,78.237,78.18,35.6693421]
[1771957381129,2.43724845,78.229,78.193,12.78877377]
[1771957381340,2.43724845,78.219,78.193,12.78877377]
[1771957381626,2.43724845,78.237,78.2,16.11368152]
[1771957381808,2.43724845,78.227,78.2,28.90139826]
[1771957382422,2.43724845,78.227,78.201,3.7699947]
[1771957382608,2.43724845,78.227,78.201,16.55755496]
[1771957382804,2.43724845,78.227,78.201,3.7699947]
[1771957383824,2.42415988,78.237,78.203,3.7699947]
[1771957384015,2.41774645,78.236,78.203,3.7699947]
[1771957385827,2.41141191,78.242,78.22,12.34368682]
[1771957386011,2.41141191,78.258,78.221,3.7699947]
[1771957388453,2.3928328,78.249,78.221,3.7699947]
[1771957389028,12.34368682,78.24,78.205,35.6693421]
[1771957389234,12.34368682,78.24,78.189,31.97359187]
[1771957389235,2.38681277,78.239,78.201,3.7699947]
[1771957389419,2.38681277,78.229,78.201,3.7699947]
[1771957390836,2.38081696,78.227,78.195,12.78851965]
[1771957391014,2.38081696,78.227,78.196,3.7699947]
[1771957392320,2.36897373,78.225,78.197,12.78821438]
[1771957392941,2.36897373,78.225,78.198,3.7699947]
[1771957393323,12.78380036,78.224,78.199,16.55788201]
[1771957393519,12.78380036,78.224,78.2,3.7699947]
[1771957393833,2.3631846,78.223,78.194,3.7699947]
[1771957394032,2.3631846,78.219,78.194,3.7699947]
[1771957394627,2.3631846,78.219,78.188,16.55960486]
[1771957395921,2.35176869,78.217,78.188,16.55960486]
[1771957396444,2.35176869,78.217,78.189,3.7699947]
[1771957397744,2.35176869,78.217,78.191,3.7699947]
[1771957397941,2.35176869,78.217,78.192,3.7699947]
[1771957398145,2.3352176,78.223,78.192,3.7699947]
[1771957400344,2.32449123,78.221,78.192,3.7699947]
[1771957402241,0.2,78.213,78.192,3.7699947]
[1771957403126,0.2,78.203,78.192,3.7699947]
[1771957404533,2.29880054,78.202,78.182,12.79065345]
[1771957404848,2.29880054,78.202,78.174,3.85941667]
[1771957405043,0.2,78.203,78.181,3.85941667]
[1771957406855,0.2,78.203,78.182,12.79066792]
[1771957407454,2.27929015,78.202,78.182,12.79066792]
[1771957407852,2.27929015,78.202,78.176,12.79164961]
[1771957408159,2.27929015,78.199,78.175,3.85627893]
[1771957409154,2.27460814,78.197,78.175,3.85627893]
[1771957411459,2.27460814,78.197,78.173,12.79204459]
[1771957411460,2.26074909,78.195,78.173,12.79204459]
[1771957411655,2.26074909,78.195,78.169,12.79268576]
[1771957411856,2.26074909,78.189,78.169,12.79268576]
[1771957412261,2.26074909,78.189,78.163,3.85627893]
[1771957413062,12.78837792,78.196,78.131,3.85627893]
[1771957413063,5.53461526,78.18,78.131,3.85627893]
[1771957413260,2.25181581,78.179,78.141,3.85627893]
[1771957414064,2.24736703,78.169,78.143,3.85627893]
[1771957414846,63.94460558,78.193,78.142,12.79721532]
[1771957414847,2.24736703,78.19,78.151,3.85627893]
[1771957415050,76.59540377,78.334,78.18,5.53461526]
[1771957415051,4.00589535,78.221,78.18,5.53461526]
[1771957415256,4.00589535,78.219,78.19,5.53461526]
[1771957415765,4.00589535,78.219,78.2,5.53461526]
[1771957415964,5.53461526,78.24,78.201,3.85627893]
[1771957416268,12.78134945,78.239,78.202,12.78739674]
[1771957416456,12.78134945,78.239,78.202,12.58739674]
[1771957416771,44.73472308,78.239,78.202,12.58739674]
[1771957417364,44.73472308,78.239,78.202,12.38739674]
[1771957417945,3.87350206,78.238,78.202,12.38739674]
[1771957418144,3.87350206,78.238,78.202,12.18739674]
[1771957418349,3.87350206,78.236,78.202,12.18739674]
[1771957420048,31.95337363,78.239,78.202,12.18739674]
[1771957420049,3.87350206,78.234,78.202,12.18739674]
[1771957421074,12.7823297,78.233,78.202,12.08635975]
[1771957421274,3.87350206,78.232,78.202,12.08635975]
[1771957421769,3.87350206,78.23,78.184,12.79034073]
[1771957421975,3.87350206,78.219,78.184,12.79034073]
[1771957422266,3.87350206,78.219,78.185,3.85627893]
[1771957423474,3.87350206,78.219,78.186,12.79001355]
[1771957423659,16.65813122,78.219,78.186,12.79001355]
[1771957423973,3.87350206,78.218,78.186,12.79001355]
[1771957425371,3.87350206,78.218,78.186,3.85627893]
[1771957426976,3.87350206,78.218,78.19,3.85627893]
[1771957427182,3.87350206,78.216,78.185,3.85627893]
[1771957427651,3.87350206,78.216,78.186,12.79001355]
[1771957427854,3.87350206,78.216,78.19,5.53461526]
[1771957428576,3.87350206,78.214,78.19,5.53461526]
[1771957429959,3.87350206,78.212,78.183,12.7903747]
[1771957432079,3.87350206,78.21,78.184,3.85627893]
[1771957434383,3.87350206,78.208,78.183,12.7903747]
[1771957435780,3.87350206,78.208,78.179,12.79115566]
[1771957436085,4.03715641,78.199,78.173,12.79211542]
[1771957436472,4.03715641,78.199,78.166,12.79328608]
[1771957436676,4.03715641,78.197,78.166,3.9580542]
[1771957437370,4.03715641,78.197,78.17,5.53461526]
[1771957438586,4.03715641,78.197,78.161,12.79410447]
[1771957438765,44.75817795,78.198,78.161,12.79410447]
[1771957438766,4.03715641,78.195,78.161,12.79410447]
[1771957440091,4.03715641,78.189,78.161,12.79410447]
[1771957442093,12.78922077,78.191,78.171,3.9580542]
[1771957442483,4.03715641,78.19,78.171,3.9580542]
[1771957442794,4.03715641,78.19,78.166,3.9580542]
[1771957444295,4.03715641,78.188,78.161,12.79410447]
[1771957444490,4.03715641,78.188,78.162,3.9580542]
[1771957445178,4.03715641,78.188,78.16,5.53461526]
[1771957445388,4.03715641,78.188,78.151,3.9580542]
[1771957445574,4.03715641,78.188,78.15,18.33052057]
[1771957445575,4.03715641,78.188,78.16,5.53461526]
[1771957446690,44.76332987,78.189,78.162,0.2]
[1771957446691,4.03715641,78.186,78.162,0.2]
[1771957447475,12.79017714,78.185,78.172,0.2]
[1771957447672,4.03715641,78.184,78.172,0.2]
[1771957447876,4.03715641,78.184,78.162,0.2]
[1771957448790,4.03715641,78.184,78.162,4.1580542]
[1771957448975,4.03715641,78.206,78.171,3.9580542]
[1771957449176,4.03715641,78.206,78.181,3.9580542]
[1771957451377,4.03715641,78.204,78.181,3.9580542]
[1771957453391,0.2,78.184,78.181,3.9580542]
[1771957453593,4.03715641,78.183,78.163,12.7937771]
[1771957453903,4.03715641,78.183,78.162,0.2]
[1771957454301,0.2,78.174,78.162,0.2]
[1771957454604,0.2,78.174,78.163,12.7937771]
[1771957454794,0.2,78.174,78.162,0.2]
[1771957455383,4.03715641,78.183,78.162,16.95192304]
[1771957455597,4.03715641,78.183,78.162,12.99386884]
[1771957456025,4.03715641,78.183,78.163,3.9580542]
[1771957458807,4.03715641,78.183,78.164,12.79361342]
[1771957459008,0.2,78.184,78.16,5.53539944]
[1771957459210,12.79050432,78.183,78.161,3.9580542]
[1771957459588,16.82766073,78.183,78.161,3.9580542]
[1771957459903,4.03715641,78.182,78.161,3.9580542]
[1771957461387,16.82798794,78.181,78.161,3.9580542]
[1771957461903,4.03715641,78.18,78.161,3.9580542]
[1771957462613,0.2,78.184,78.15,5.53539944]
[1771957462614,4.03715641,78.178,78.152,3.9580542]
[1771957464713,4.03715641,78.178,78.154,3.86082537]
[1771957469097,4.03715641,78.178,78.156,3.65894634]
[1771957469413,16.50763145,78.191,78.161,3.65894634]
[1771957469713,3.71839919,78.19,78.161,3.65894634]
[1771957471518,3.71839919,78.19,78.16,5.53539944]
[1771957471519,3.71839919,78.189,78.163,3.65894634]
[1771957471715,3.71839919,78.195,78.163,3.65894634]
[1771957472917,5.36086188,78.208,78.162,44.77879275]
[1771957472918,12.78733387,78.203,78.181,3.65894634]
[1771957473727,3.71839919,78.203,78.181,3.65894634]
[1771957474400,5.36086188,78.218,78.191,3.65894634]
[1771957474401,3.71839919,78.217,78.191,3.65894634]
[1771957475629,3.71839919,78.215,78.191,3.65894634]
[1771957476324,3.71839919,78.215,78.185,3.65894634]
[1771957476523,3.71839919,78.209,78.185,3.65894634]
[1771957477509,3.71839919,78.209,78.187,3.65894634]
[1771957478621,3.71839919,78.229,78.191,3.65894634]
[1771957478807,3.71839919,78.229,78.201,3.65894634]
[1771957479727,3.71839919,78.235,78.213,3.65894634]
[1771957480029,3.71839919,78.244,78.221,3.65894634]
[1771957480211,12.77953718,78.251,78.221,3.65894634]
[1771957480212,3.71839919,78.251,78.221,3.65894634]
[1771957480925,3.71839919,78.249,78.221,3.65894634]
[1771957481913,3.71839919,78.249,78.223,3.65894634]
[1771957482112,57.64,78.252,78.223,3.65894634]
[1771957482423,12.77927791,78.252,78.223,3.65894634]
[1771957482631,3.71839919,78.251,78.223,3.65894634]
[1771957482833,3.71839919,78.249,78.223,3.65894634]
[1771957483932,3.71839919,78.239,78.211,3.65894634]
[1771957484122,3.71839919,78.239,78.212,3.65894634]
[1771957484932,3.71839919,78.238,78.212,3.65894634]
[1771957485521,3.71839919,78.237,78.201,3.65894634]
[1771957485716,3.71839919,78.229,78.201,3.65894634]
[1771957486332,3.71839919,78.227,78.201,3.65894634]
[1771957486811,3.71839919,78.227,78.216,0.4962056]
[1771957489235,3.71839919,78.225,78.201,3.65894634]
[1771957489635,3.71839919,78.219,78.184,3.65894634]
[1771957489830,3.71839919,78.219,78.185,3.65894634]
[1771957490416,3.71839919,78.225,78.201,3.65894634]
[1771957493929,3.71839919,78.223,78.201,3.65894634]
[1771957495331,5.53539944,78.23,78.201,3.65894634]
[1771957495332,3.77683902,78.229,78.201,3.65894634]
[1771957496521,3.77683902,78.228,78.203,3.76752092]
[1771957498742,3.77683902,78.226,78.203,3.76752092]
[1771957499341,3.77683902,78.226,78.197,3.76752092]
[1771957499539,12.78331011,78.227,78.183,3.76752092]
[1771957499540,3.77683902,78.219,78.183,3.76752092]